bitfinex/quotes_ETHUSD_20240716
["timestamp","ask_amount","ask_price","bid_price","bid_amount"]
[1721140607299,2.93332,3409.1,3408.3,2.93401]
[1721140607745,2.93325,3409.2,3408.3,2.93401]
[1721140608044,2.93272,3409.9,3409.1,2.93331]
[1721140608638,2.93272,3409.8,3409.0,2.93334]
[1721140608846,2.93272,3409.8,3409.1,2.93332]
[1721140609054,2.93272,3409.8,3409.0,1.023334]
[1721140609055,2.93205,3410.6,3409.5,2.93297]
[1721140609342,2.93205,3410.6,3409.5,2.99162228]
[1721140609515,1.21560608,3410.3,3409.5,2.99162228]
[1721140609919,1.21560608,3410.3,3409.6,2.93288]
[1721140610115,1.21560608,3410.3,3409.7,0.586593]
[1721140610317,2.93195,3410.7,3409.8,2.93272]
[1721140610535,2.9318,3410.9,3410.0,2.9325]
[1721140610863,2.93188,3410.8,3410.0,2.93254]
[1721140611143,2.93188,3410.8,3410.1,2.93246]
[1721140611302,6.30944,3411.3,3410.3,2.2998]
[1721140611502,2.93152,3411.2,3410.3,2.2998]
[1721140611737,3.378,3411.3,3410.3,2.2998]
[1721140611738,2.93179,3410.9,3410.3,2.2998]
[1721140613342,2.93198,3410.7,3410.3,2.2998]
[1721140613512,2.93245,3410.2,3409.6,5.3928]
[1721140613714,2.93247,3410.1,3409.6,5.3928]
[1721140614408,2.9327,3409.9,3409.5,7.3]
[1721140614612,3.378,3410.7,3409.5,7.3]
[1721140614613,2.93247,3410.1,3409.5,7.3]
[1721140614847,2.93255,3410.0,3409.5,7.3]
[1721140615153,2.93276,3409.8,3409.5,7.3]
[1721140616058,5.86483,3410.2,3409.5,7.3]
[1721140616353,2.93246,3410.1,3409.5,7.3]
[1721140616668,2.93257,3410.0,3409.5,7.3]
[1721140617452,2.93289,3409.6,3409.5,7.3]
[1721140617810,2.93302,3409.5,3409.1,2.4333]
[1721140618011,2.93281,3409.7,3409.1,2.4333]
[1721140619061,6.31042,3410.2,3409.1,2.4333]
[1721140619062,2.93247,3410.1,3409.1,2.4333]
[1721140619371,2.93235,3410.3,3409.3,2.93313]
[1721140619597,2.93214,3410.5,3409.2,0.24333]
[1721140619744,2.93214,3410.5,3409.7,2.93274]
[1721140619941,2.93214,3410.5,3409.2,0.24333]
[1721140620138,3.378,3411.2,3409.7,2.93275]
[1721140620383,2.93193,3410.8,3410.0,5.21323]
[1721140620663,2.93192,3410.8,3410.1,2.93246]
[1721140620830,3.378,3411.2,3410.0,2.2807]
[1721140621030,2.9315,3411.3,3410.5,2.93207]
[1721140621274,3.517782,3411.3,3410.5,2.93207]
[1721140621428,2.93183,3410.9,3410.2,7.3]
[1721140621629,2.93201,3410.7,3410.2,7.3]
[1721140622111,2.93177,3410.9,3410.2,7.3]
[1721140622367,2.93209,3410.6,3410.2,7.3]
[1721140622529,2.93213,3410.5,3410.0,2.2807]
[1721140622732,0.55,3410.8,3410.0,2.2807]
[1721140622964,2.93229,3410.3,3409.6,13.23284]
[1721140623132,2.93229,3410.3,3409.6,19.08303562]
[1721140623331,2.93182,3410.9,3409.9,2.93255]
[1721140623332,2.93198,3410.7,3409.9,2.93255]
[1721140623535,2.93204,3410.6,3409.9,2.93255]
[1721140623765,2.93193,3410.8,3410.0,2.93252]
[1721140624125,2.93164,3411.1,3410.2,2.9323]
[1721140624330,2.9317,3411.0,3410.3,0.52324]
[1721140624567,2.9317,3411.0,3410.3,3.45553]
[1721140624926,2.93204,3410.6,3410.1,2.3001]
[1721140625131,2.93196,3410.7,3410.1,2.3001]
[1721140625364,5.86399,3410.7,3410.1,2.3001]
[1721140625567,2.93204,3410.6,3410.1,2.3001]
[1721140626069,2.93181,3410.9,3410.1,2.3001]
[1721140626268,3.378,3411.2,3410.2,0.55250028]
[1721140626269,2.93189,3410.8,3410.2,0.55250028]
[1721140626631,2.93195,3410.7,3410.2,0.55250028]
[1721140626975,2.93189,3410.8,3410.1,2.3001]
[1721140627387,5.86348,3411.0,3410.3,2.93227]
[1721140627964,2.93171,3411.0,3410.3,2.93227]
[1721140628162,6.30955,3411.2,3410.3,2.93227]
[1721140628368,2.93119,3411.6,3410.5,2.93205]
[1721140628569,2.93126,3411.5,3410.7,5.27467]
[1721140628795,2.93122,3411.6,3410.8,2.99048279]
[1721140629101,2.93134,3411.5,3410.8,2.93185]
[1721140629455,2.93124,3411.6,3410.8,2.93185]
[1721140629808,2.9572775,3412.1,3411.4,2.93129]
[1721140629809,0.0264875,3412.1,3411.4,2.93129]
[1721140629954,2.9572575,3412.1,3411.4,2.93129]
[1721140630153,2.9572575,3412.1,3411.5,2.93125]
[1721140630564,0.0264875,3412.1,3411.6,2.93117]
[1721140630767,0.0264875,3412.1,3411.9,2.93084]
[1721140630975,0.0264875,3412.1,3411.7,2.37621591]
[1721140630976,0.0264875,3412.1,3412.0,3.46153559]
[1721140631754,0.0264875,3412.1,3412.0,0.53070559]
[1721140631958,0.0264875,3412.1,3411.9,2.9309]
[1721140634395,0.0264875,3412.1,3411.7,2.3176]
[1721140637170,0.0264875,3412.1,3411.7,5.24868]
[1721140637372,0.0264875,3412.1,3411.9,2.93084]
[1721140637570,0.0264875,3412.1,3412.0,2.93083]
[1721140637905,0.0264875,3412.1,3412.0,0.817927]
[1721140638112,0.0264875,3412.1,3411.7,2.3176]
[1721140638278,0.0264875,3412.1,3412.0,2.93083]
[1721140639971,0.0264875,3412.1,3412.0,5.86166]
[1721140641085,0.0264875,3412.1,3412.0,8.86166]
[1721140646926,0.0264875,3412.1,3412.0,14.24996]
[1721140647126,0.0264875,3412.1,3412.0,21.536616]
[1721140647327,0.0264875,3412.1,3412.0,15.508786]
[1721140647636,2.92986,3413.2,3412.4,2.93043]
[1721140647786,2.92932,3413.8,3412.4,2.93043]
[1721140647787,2.92969,3413.4,3412.5,5.93031]
[1721140648103,2.92971,3413.4,3412.6,2.9303]
[1721140648280,2.92945,3413.6,3412.6,0.886077]
[1721140648483,2.92945,3413.6,3412.2,7.3]
[1721140648484,2.92945,3413.6,3412.7,2.93021]
[1721140648730,2.92944,3413.7,3412.7,2.93021]
[1721140649020,2.92959,3413.5,3412.7,2.93015]
[1721140649230,2.92959,3413.5,3412.9,2.93005]
[1721140649414,2.92941,3413.7,3412.9,2.93005]
[1721140649611,2.92941,3413.7,3413.0,2.92992]
[1721140650239,2.92947,3413.6,3413.0,2.92992]
[1721140650411,2.92955,3413.5,3412.9,2.2913]
[1721140651232,2.92963,3413.4,3412.9,2.2913]
[1721140651398,2.92955,3413.5,3412.9,2.2913]
[1721140652034,2.92955,3413.5,3412.9,5.22135]
[1721140652959,2.92939,3413.7,3412.9,5.22135]
[1721140653118,2.92959,3413.5,3412.9,5.22135]
[1721140653558,2.92959,3413.5,3412.9,2.2913]
[1721140653724,5.8592,3413.5,3412.9,2.2913]
[1721140654124,2.92963,3413.4,3412.9,2.2913]
[1721140654433,3.378,3413.9,3412.9,2.2913]
[1721140654434,6.30723,3413.9,3412.9,6.036513]
[1721140654650,2.92938,3413.7,3413.1,2.92987]
[1721140654975,2.92963,3413.4,3412.9,2.2913]
[1721140655554,2.92941,3413.7,3412.9,2.2913]
[1721140655555,2.92956,3413.5,3412.9,2.2913]
[1721140655750,2.92956,3413.5,3412.9,3.106454]
[1721140655751,5.85918,3413.5,3412.9,3.106454]
[1721140656064,2.92963,3413.4,3412.9,2.2913]
[1721140656763,3.378,3413.9,3412.5,12.70396]
[1721140656764,2.92985,3413.2,3412.5,12.70396]
[1721140657059,2.92995,3413.1,3412.5,9.7736]
[1721140657262,2.92997,3413.0,3412.5,9.7736]
[1721140657476,2.93011,3412.9,3412.5,9.7736]
[1721140657765,2.93011,3412.9,3412.5,7.3]
[1721140657766,2.93015,3412.8,3412.5,7.3]
[1721140658351,2.93023,3412.7,3412.5,7.3]
[1721140658556,2.92992,3413.1,3412.5,7.3]
[1721140658743,2.9301,3412.9,3412.5,7.3]
[1721140658949,3.378,3413.9,3412.5,10.90512759]
[1721140658950,2.9298,3413.2,3412.5,10.90512759]
[1721140659873,5.8594,3413.4,3412.6,2.9303]
[1721140660080,2.92949,3413.6,3412.8,2.93011]
[1721140660433,2.92967,3413.4,3412.8,2.93011]
[1721140660849,2.92949,3413.6,3412.8,2.93011]
[1721140661531,5.85902,3413.6,3412.8,2.93011]
[1721140661736,2.92949,3413.6,3412.8,2.93011]
[1721140661934,2.92985,3413.2,3412.7,2.3556]
[1721140662566,2.93003,3413.0,3412.7,2.3556]
[1721140662737,2.93003,3413.0,3412.5,7.3]
[1721140662935,2.92981,3413.2,3412.5,8.850548]
[1721140663239,2.92993,3413.1,3412.5,8.850548]
[1721140664235,5.28331,3413.2,3412.5,7.3]
[1721140664236,2.93016,3412.8,3412.5,7.3]
[1721140664543,2.93028,3412.7,3412.5,7.3]
[1721140665144,2.3535,3413.2,3412.5,7.3]
[1721140665368,2.93005,3413.0,3412.5,7.3]
[1721140665587,2.820005,3413.0,3412.0,8.724996]
[1721140665789,2.820005,3413.0,3412.0,7.3]
[1721140665790,2.93049,3412.4,3412.0,7.3]
[1721140665948,2.93049,3412.4,3411.8,2.931]
[1721140666363,2.93039,3412.6,3411.8,2.931]
[1721140666671,2.93039,3412.6,3411.7,5.36798]
[1721140666672,5.45671,3413.4,3411.7,2.4369]
[1721140666880,2.93012,3412.9,3412.2,2.93065]
[1721140667089,2.3531,3414.2,3411.9,2.4719]
[1721140667305,2.3531,3414.2,3412.7,2.4719]
[1721140667306,2.92974,3413.3,3412.7,2.4719]
[1721140667494,2.92974,3413.3,3412.7,5.40211]
[1721140667785,2.92974,3413.3,3412.7,2.83734304]
[1721140668077,2.92957,3413.5,3412.7,2.4719]
[1721140668078,2.92997,3413.0,3412.7,2.4719]
[1721140668301,5.86001,3413.0,3412.7,2.4719]
[1721140668589,2.93006,3412.9,3412.7,2.4719]
[1721140669259,2.93006,3412.9,3412.4,3.0]
[1721140669797,2.92991,3413.1,3412.4,3.0]
[1721140670479,2.92991,3413.1,3412.3,10.23054]
[1721140670480,2.9301,3412.9,3412.3,7.3]
[1721140670689,2.9301,3412.9,3412.4,1.261067]
[1721140670860,2.9301,3412.9,3412.3,7.3]
[1721140671041,2.93015,3412.8,3412.3,7.3]
[1721140671244,2.93015,3412.8,3412.1,2.38]
[1721140671480,2.93015,3412.8,3412.1,5.38]
[1721140671682,2.93025,3412.7,3412.1,8.31074]
[1721140671892,5.45667,3413.4,3412.1,8.31074]
[1721140671893,2.93013,3412.9,3412.2,2.777074]
[1721140672059,2.93013,3412.9,3412.2,5.707654]
[1721140672262,2.527,3413.4,3412.3,2.93051]
[1721140672465,2.92995,3413.1,3412.3,2.93051]
[1721140672659,2.93007,3412.9,3412.3,2.93051]
[1721140672861,1.2231375,3413.7,3412.5,2.93035]
[1721140673085,2.92988,3413.1,3412.5,2.93035]
[1721140674194,2.92988,3413.1,3412.4,4.3323084]
[1721140674590,2.93034,3412.6,3412.1,5.38]
[1721140674907,2.9302,3412.8,3412.1,2.38]
[1721140675255,2.9302,3412.8,3412.2,2.93062]
[1721140675489,2.93001,3413.0,3412.3,2.93054]
[1721140675795,2.93007,3412.9,3412.1,5.31066]
[1721140676005,2.93015,3412.8,3412.2,4.12187834]
[1721140676290,2.93015,3412.8,3412.2,1.12187834]
[1721140676500,2.93015,3412.8,3412.2,4.12187834]
[1721140676706,5.86037,3412.8,3412.2,4.12187834]
[1721140676856,2.93038,3412.6,3412.1,2.38]
[1721140677189,2.93041,3412.5,3412.1,2.38]
[1721140677764,1.2231375,3412.8,3412.2,2.93065]
[1721140677966,4.46177074,3413.0,3412.2,2.93065]
[1721140677967,7.0832075,3413.0,3412.2,2.93065]
[1721140678279,2.93002,3413.0,3412.3,1.124147]
[1721140678482,4.1558269,3413.0,3412.3,1.124147]
[1721140679085,4.1558269,3413.0,3412.3,4.054697]
[1721140679364,1.2258069,3413.2,3412.4,2.93043]
[1721140679575,4.46189862,3413.4,3412.4,2.93043]
[1721140679576,1.2258069,3413.3,3412.6,2.9303]
[1721140679977,4.1556069,3413.2,3412.6,2.9303]
[1721140680188,4.1556069,3413.2,3412.5,0.4054577]
[1721140680512,1.53225862,3413.3,3412.6,2.93028]
[1721140680513,1.2258069,3413.1,3412.6,2.93028]
[1721140680731,1.53225862,3413.3,3412.6,2.93028]
[1721140680732,1.2258069,3413.2,3412.6,4.39931047]
[1721140681003,1.2258069,3413.2,3412.6,1.46903047]
[1721140681206,1.2258069,3413.3,3412.9,5.19814]
[1721140681368,1.2258069,3413.3,3412.9,2.2681]
[1721140681569,1.2258069,3413.1,3412.4,5.36352]
[1721140681803,1.2258069,3413.0,3412.6,2.93024]
[1721140682118,1.2258069,3413.1,3412.4,2.4331]
[1721140682350,1.2258069,3413.0,3412.8,2.93008]
[1721140682506,1.2258069,3413.1,3412.8,2.93008]
[1721140683027,1.2258069,3413.0,3412.4,5.36356]
[1721140683342,1.2258069,3412.9,3412.5,2.93038]
[1721140683555,1.53208146,3413.0,3412.5,2.93038]
[1721140683556,1.2258069,3412.8,3412.5,2.93038]
[1721140683708,1.2258069,3412.8,3412.5,4.6021917]
[1721140684739,1.2258069,3413.0,3412.5,7.5325217]
[1721140685054,1.2258069,3413.0,3412.7,2.93019]
[1721140685220,1.2258069,3413.0,3412.7,5.86033]
[1721140685420,1.2258069,3413.0,3412.7,6.85685417]
[1721140686043,1.2258069,3413.2,3412.9,2.92999]
[1721140686344,2.92949,3413.6,3412.9,5.85998]
[1721140686345,1.2258069,3413.3,3412.9,5.85998]
[1721140686555,1.2258069,3413.3,3412.9,6.54563042]
[1721140687456,1.2258069,3413.3,3412.9,3.61564042]
[1721140687628,1.2258069,3413.4,3412.9,3.61564042]
[1721140688011,1.2258069,3413.4,3413.2,2.92973]
[1721140688838,1.2258069,3413.4,3413.0,5.24351]
[1721140689111,1.2258069,3413.3,3413.1,2.92982]
[1721140689306,1.53268775,3413.5,3413.0,5.24351]
[1721140689307,1.2258069,3413.4,3413.2,2.9298]
[1721140689549,1.2258069,3413.3,3413.2,2.9298]
[1721140690052,1.2258069,3413.4,3413.2,5.85955]
[1721140690225,1.2258069,3413.4,3413.3,2.92971]
[1721140690550,1.2258069,3413.5,3413.3,2.92971]
[1721140691041,1.2258069,3413.4,3413.3,2.92971]
[1721140691444,1.22656937,3413.4,3413.3,2.92971]
[1721140691814,1.22656937,3413.5,3413.3,2.92971]
[1721140692234,1.22656937,3413.4,3413.3,2.92971]
[1721140692443,1.22656937,3413.4,3413.2,2.92979]
[1721140692818,1.22656937,3413.7,3413.3,2.92971]
[1721140693018,1.22656937,3413.8,3413.3,2.92971]
[1721140693527,1.22656937,3413.7,3413.4,2.9296]
[1721140693738,1.22656937,3413.8,3413.5,2.92949]
[1721140694076,1.22656937,3413.8,3413.5,3.6039986]
[1721140694356,1.22656937,3414.0,3413.5,3.6039986]
[1721140694561,1.22656937,3414.0,3413.7,2.92937]
[1721140694923,1.22656937,3414.0,3413.7,2.9293]
[1721140695338,1.22656937,3413.9,3413.7,2.9293]
[1721140695538,1.22656937,3414.0,3413.7,2.9293]
[1721140696474,1.22656937,3414.0,3413.6,2.92944]
[1721140696475,1.22603808,3414.0,3413.6,2.92944]
[1721140696629,1.50239665,3413.9,3413.0,5.3136]
[1721140696824,1.22603808,3413.9,3413.4,2.92957]
[1721140697152,1.22603808,3413.6,3412.8,2.93012]
[1721140697395,1.22603808,3413.6,3412.7,7.3]
[1721140697396,1.22603808,3413.4,3412.7,7.3]
[1721140697558,1.22603808,3413.0,3412.7,7.3]
[1721140697743,1.22603808,3412.9,3412.7,7.3]
[1721140697928,1.22603808,3412.8,3412.7,7.3]
[1721140698128,1.22603808,3412.8,3412.0,2.2824]
[1721140698129,1.53209282,3412.9,3412.0,2.2824]
[1721140698329,1.22490381,3412.6,3412.1,2.93069]
[1721140698566,4.46225282,3412.8,3412.1,2.93069]
[1721140698567,1.22490381,3412.7,3412.1,2.93069]
[1721140698730,1.22490381,3412.6,3412.1,2.93069]
[1721140699341,1.22490381,3412.7,3412.2,2.93063]
[1721140699666,1.22490381,3412.7,3412.1,4.47509]
[1721140699964,1.22490381,3412.6,3412.1,2.93069]
[1721140700132,1.22490381,3412.6,3412.2,2.93065]
[1721140700332,1.22490381,3412.7,3412.2,2.93065]
[1721140700562,1.22490381,3412.8,3412.2,2.93065]
[1721140701178,1.22490381,3412.7,3412.2,2.93065]
[1721140701583,1.22490381,3412.8,3412.2,2.93065]
[1721140701784,1.22490381,3412.8,3412.4,2.93042]
[1721140702175,4.15504381,3412.8,3412.2,2.93065]
[1721140702345,1.22490381,3412.8,3412.0,2.2824]
[1721140702550,1.22490381,3412.9,3412.4,2.9304]
[1721140703782,1.22490381,3412.9,3412.1,2.93071]
[1721140703783,1.22490381,3412.7,3412.1,2.93071]
[1721140704178,1.22490381,3412.7,3412.0,2.2824]
[1721140704378,1.22490381,3412.6,3412.0,8.21316]
[1721140704752,1.22490381,3412.5,3412.0,8.21316]
[1721140704951,1.22490381,3412.6,3412.0,8.21316]
[1721140705165,1.22490381,3412.5,3412.1,2.93074]
[1721140705465,1.22490381,3412.6,3412.0,8.21316]
[1721140705664,1.22490381,3412.5,3412.0,8.21316]
[1721140705869,1.22490381,3412.6,3412.0,8.21316]
[1721140706064,1.22490381,3412.6,3412.1,2.93074]
[1721140706453,1.22490381,3412.6,3411.9,10.23089]
[1721140706454,1.22490381,3412.6,3411.9,7.3]
[1721140706657,1.22490381,3412.4,3411.9,7.3]
[1721140706996,1.22490381,3412.2,3411.9,7.3]
[1721140707294,4.15561381,3412.2,3411.4,3.0]
[1721140707586,4.15561381,3412.2,3411.3,10.23142]
[1721140707587,1.22490381,3412.0,3411.3,10.23142]
[1721140707764,4.15565381,3412.1,3411.3,10.23142]
[1721140707961,1.22490381,3412.0,3411.3,12.713272]
[1721140708192,1.22490381,3412.0,3411.3,7.3]
[1721140708390,2.93112,3411.7,3411.3,7.3]
[1721140708760,4.15472058,3411.7,3411.3,7.3]
[1721140709396,2.93134,3411.4,3411.3,7.3]
[1721140709617,2.93134,3411.4,3410.7,2.93193]
[1721140709772,2.93134,3411.4,3410.8,0.4643314]
[1721140710106,4.15493058,3411.5,3410.6,7.3]
[1721140710107,4.15505058,3411.3,3410.6,7.3]
[1721140710511,2.93145,3411.3,3410.6,7.3]
[1721140710801,6.68193058,3411.5,3410.6,7.3]
[1721140710802,4.15489058,3411.5,3410.6,7.3]
[1721140710967,2.93135,3411.4,3410.6,10.23198]
[1721140711172,2.93144,3411.3,3410.6,10.23198]
[1721140711475,2.93144,3411.3,3410.7,1.316418]
[1721140711794,2.93152,3411.2,3410.6,7.3]
[1721140712016,2.93171,3411.0,3410.6,7.3]
[1721140712181,2.527,3411.5,3410.6,7.3]
[1721140712182,2.93144,3411.3,3410.6,7.3]
[1721140712887,2.93112,3411.7,3410.6,7.3]
[1721140713201,2.93097,3411.9,3411.2,2.93149]
[1721140713514,2.93078,3412.1,3411.3,2.93142]
[1721140713662,2.93078,3412.1,3411.4,2.93134]
[1721140713867,2.93088,3412.0,3411.3,0.821301]
[1721140714358,2.93094,3411.9,3411.3,0.821301]
[1721140714696,2.93094,3411.9,3411.3,3.752731]
[1721140715397,2.93083,3412.0,3411.3,3.752731]
[1721140715597,4.98403094,3412.6,3411.3,3.752731]
[1721140715598,4.15407058,3412.5,3411.6,2.93111]
[1721140715813,2.93047,3412.5,3411.6,2.93111]
[1721140715997,2.93065,3412.3,3411.6,2.93111]
[1721140716299,2.93067,3412.2,3411.6,2.93111]
[1721140716467,2.93067,3412.2,3411.6,3.68982091]
[1721140716972,2.93067,3412.2,3411.6,0.75871091]
[1721140717172,2.9305,3412.4,3411.6,2.93116]
[1721140717173,5.86107,3412.4,3411.6,2.93116]
[1721140717381,2.93055,3412.4,3411.6,2.93116]
[1721140717718,2.93057,3412.3,3411.6,2.93116]
[1721140718060,2.93045,3412.5,3411.6,2.93116]
[1721140718265,2.93015,3412.8,3411.4,2.4085]
[1721140718499,1.22360058,3412.9,3412.2,2.4085]
[1721140718500,2.93007,3412.9,3412.2,2.4085]
[1721140718705,3.75060058,3413.1,3412.4,2.93043]
[1721140718706,2.92989,3413.1,3412.4,2.93043]
[1721140719073,2.92989,3413.1,3412.2,5.33908]
[1721140719276,2.92989,3413.1,3412.2,2.4085]
[1721140719507,2.92989,3413.1,3412.2,5.3391]
[1721140719711,2.527,3413.1,3412.2,2.4085]
[1721140719870,2.93008,3412.9,3412.2,2.4085]
[1721140720070,5.45692,3413.1,3412.2,2.4085]
[1721140720318,2.92997,3413.0,3412.3,2.93052]
[1721140721264,2.527,3413.1,3412.3,5.86101]
[1721140721579,2.527,3413.1,3412.0,3.0]
[1721140721580,2.9301,3412.9,3412.0,3.0]
[1721140721919,5.45692,3413.1,3412.2,2.93065]
[1721140722204,2.93014,3412.8,3412.0,5.93078]
[1721140722712,2.527,3413.1,3412.0,3.0]
[1721140722713,2.93038,3412.6,3412.0,3.0]
[1721140723212,2.93038,3412.6,3411.9,10.23091]
[1721140723213,2.93057,3412.3,3411.9,7.3]
[1721140723502,5.45766,3412.3,3411.9,7.3]
[1721140723667,5.45766,3412.3,3411.2,2.3528]
[1721140723668,2.93092,3411.9,3411.2,2.3528]
[1721140723871,2.527,3412.3,3411.3,4.189828]
[1721140723872,5.4576,3412.3,3411.3,4.189828]
[1721140724210,2.93068,3412.2,3411.6,2.93115]
[1721140725306,2.93068,3412.2,3411.4,2.93134]
[1721140725805,2.93068,3412.2,3411.6,2.93116]
[1721140726009,2.527,3412.3,3411.6,2.93116]
[1721140726166,2.93049,3412.4,3411.6,3.6432538]
[1721140726370,2.93049,3412.4,3411.7,2.93108]
[1721140726569,2.93049,3412.4,3411.6,3.6432538]
[1721140726570,2.527,3412.7,3411.8,2.93098]
[1721140726866,5.86075,3412.6,3411.6,6.5743238]
[1721140727071,2.93036,3412.6,3411.9,2.93089]
[1721140727310,5.86075,3412.6,3411.9,3.29518838]
[1721140727509,2.527,3412.7,3411.5,7.3]
[1721140727682,2.93035,3412.6,3411.8,2.93097]
[1721140728003,2.93052,3412.4,3411.7,2.93106]
[1721140728225,2.93052,3412.4,3411.5,7.3]
[1721140728226,2.93035,3412.6,3411.8,2.93097]
[1721140728372,2.93043,3412.5,3411.9,2.93091]
[1721140728571,2.93043,3412.5,3411.6,2.93113]
[1721140728867,2.93035,3412.6,3411.5,7.3]
[1721140728868,2.93084,3412.0,3411.5,7.3]
[1721140729082,2.93084,3412.0,3411.3,4.189818]
[1721140729083,2.93088,3412.0,3411.2,2.3528]
[1721140729286,2.93088,3412.0,3411.2,5.3528]
[1721140729518,2.9311,3411.7,3411.2,5.3528]
[1721140729710,2.9311,3411.7,3411.1,7.3]
[1721140730075,2.93139,3411.4,3411.1,7.3]
[1721140730276,2.93143,3411.3,3411.1,7.3]
[1721140730475,2.93143,3411.3,3410.6,2.932]
[1721140730476,5.86294,3411.3,3410.6,2.932]
[1721140730708,2.93143,3411.3,3410.6,2.932]
[1721140730873,2.93153,3411.2,3410.6,2.932]
[1721140731207,2.93143,3411.3,3410.6,2.932]
[1721140731415,2.93143,3411.3,3410.6,4.479249]
[1721140731577,2.93127,3411.5,3410.6,4.479249]
[1721140731769,2.93129,3411.5,3410.6,4.479249]
[1721140732102,2.93148,3411.3,3410.6,4.479249]
[1721140732325,2.93152,3411.2,3410.6,4.479249]
[1721140732474,2.93152,3411.2,3410.6,2.932]
[1721140732673,2.93148,3411.3,3410.6,2.932]
[1721140733320,2.93152,3411.2,3410.4,10.23213]
[1721140733478,2.93152,3411.2,3410.4,2.93213]
[1721140733681,2.93152,3411.2,3410.5,2.93212]
[1721140734095,2.93152,3411.2,3410.6,2.93202]
[1721140734489,3.38334176,3411.2,3410.6,2.93202]
[1721140734705,2.93152,3411.2,3410.6,2.93202]
[1721140735484,2.93152,3411.2,3410.4,2.93213]
[1721140735908,2.93152,3411.2,3410.5,2.93209]
[1721140737520,2.93152,3411.2,3410.6,2.93201]
[1721140738301,2.93124,3411.6,3410.8,2.93179]
[1721140738881,2.93158,3411.2,3410.5,2.93203]
[1721140739203,2.93158,3411.2,3410.4,2.93213]
[1721140740413,2.93104,3411.8,3410.9,2.93171]
[1721140740414,2.93111,3411.7,3410.9,2.93171]
[1721140740619,2.93126,3411.5,3410.9,2.93171]
[1721140741208,2.93126,3411.5,3411.0,0.586364]
[1721140741413,2.93126,3411.5,3410.9,2.93171]
[1721140741810,2.93152,3411.2,3410.5,5.86415]
[1721140741978,2.93152,3411.2,3410.6,3.0]
[1721140742179,2.93152,3411.2,3410.6,5.93203]
[1721140742481,2.93162,3411.1,3410.6,3.0]
[1721140742732,2.93162,3411.1,3410.5,3.0]
[1721140744282,2.93144,3411.3,3410.5,7.049352]
[1721140744785,2.93154,3411.2,3410.5,7.049352]
[1721140746324,2.93154,3411.2,3410.6,2.93203]
[1721140746500,6.6777209,3411.8,3411.1,2.3479]
[1721140746501,2.9311,3411.7,3411.1,2.3479]
[1721140747330,2.93113,3411.7,3411.1,2.3479]
[1721140747508,1.2196809,3412.1,3411.1,2.3479]
[1721140747831,2.93094,3411.9,3411.2,2.93146]
[1721140748338,4.05505572,3412.2,3411.1,2.3479]
[1721140748339,2.527,3412.2,3411.1,2.3479]
[1721140748498,2.93075,3412.1,3411.5,2.93124]
[1721140748703,2.93075,3412.1,3411.4,2.93126]
[1721140749207,2.93075,3412.1,3411.4,5.86252]
[1721140749707,2.93075,3412.1,3411.2,0.23479]
[1721140749915,2.93075,3412.1,3411.1,2.3479]
[1721140749916,2.93075,3412.1,3411.4,2.93126]
[1721140750235,2.93075,3412.1,3411.3,3.189619]
[1721140750445,2.93075,3412.1,3411.5,2.93125]
[1721140751096,2.93075,3412.1,3411.3,3.189619]
[1721140751308,5.86157,3412.1,3411.3,3.189619]
[1721140751742,5.86157,3412.1,3410.8,3.0]
[1721140751743,2.9314,3411.4,3410.8,3.0]
[1721140751902,2.93152,3411.2,3410.8,3.0]
[1721140752298,2.9313,3411.5,3410.8,3.0]
[1721140752539,2.93149,3411.3,3410.8,3.0]
[1721140752702,2.93152,3411.2,3410.8,3.0]
[1721140752897,1.22233261,3411.6,3410.9,2.93176]
[1721140752898,2.93123,3411.6,3410.9,2.93176]
[1721140753221,2.93126,3411.5,3410.8,3.47848684]
[1721140753430,2.93126,3411.5,3410.8,6.41033684]
[1721140754714,2.93126,3411.5,3410.8,6.41026684]
[1721140755018,1.22233261,3411.8,3411.0,2.93168]
[1721140755214,1.22233261,3411.8,3411.2,2.9315]
[1721140755438,4.15320261,3412.0,3411.2,2.9315]
[1721140755621,1.22233261,3411.9,3411.2,2.9315]
[1721140756301,2.93103,3411.8,3411.2,2.9315]
[1721140756503,2.93103,3411.8,3411.2,3.58191967]
[1721140756698,1.22233261,3411.9,3411.5,2.93126]
[1721140756950,1.22233261,3412.1,3411.5,2.93126]
[1721140757102,9.61077261,3412.2,3411.5,2.93126]
[1721140757918,1.22233261,3412.2,3411.5,2.93119]
[1721140758127,4.15290261,3412.3,3411.6,3.467099]
[1721140758430,5.45736,3412.6,3411.9,2.93086]
[1721140758431,4.15269261,3412.6,3411.9,2.93086]
[1721140758943,1.22233261,3412.4,3411.8,2.93096]
[1721140759307,4.15282261,3412.4,3411.8,2.93096]
[1721140760242,1.22233261,3412.3,3411.6,2.93109]
[1721140760448,2.9309,3412.0,3411.2,0.65041967]
[1721140760662,2.93109,3411.7,3410.9,5.25181]
[1721140760812,2.93109,3411.7,3411.1,2.93159]
[1721140761145,2.93106,3411.8,3411.1,2.93159]
[1721140761547,2.9311,3411.7,3411.0,3.0]
[1721140762550,2.93143,3411.4,3410.7,7.3]
[1721140762850,2.527,3411.8,3410.7,7.3]
[1721140762851,2.93145,3411.3,3410.7,7.3]
[1721140763037,2.93145,3411.3,3410.6,2.314]
[1721140763038,2.93153,3411.2,3410.6,2.314]
[1721140763427,2.9317,3411.0,3410.3,7.3]
[1721140763629,2.9317,3411.0,3410.3,10.23228]
[1721140764325,2.93147,3411.3,3410.6,2.93202]